[Event "Titled Tuesday Blitz June 15 2021"]
[White "Vazquez, Facundo"]
[Black "Odegov, Artem"]
[WhiteFideId "3007669"]
[BlackFideId "34183644"]
[WhiteElo "1984"]
[BlackElo "2297"]
[Result "1-0"]
[Round "10"]
[TimeControl "180+1"]
[Date "2021.06.15"]
[WhiteClock "0:00:44"]
[BlackClock "0:00:05"]

1. d4 {[%clk 0:03:00]}  Nf6 {[%clk 0:02:59]} 2. c4 {[%clk 0:03:01]}  g6 {[%clk 0:03:00]} 3. Nf3 {[%clk 0:03:01]}  Bg7 {[%clk 0:03:00]} 4. g3 {[%clk 0:02:59]}  O-O {[%clk 0:03:00]} 5. Bg2 {[%clk 0:03:00]}  d6 {[%clk 0:03:01]} 6. O-O {[%clk 0:03:00]}  Nbd7 {[%clk 0:03:01]} 7. Nc3 {[%clk 0:03:01]}  e5 {[%clk 0:03:01]} 8. e4 {[%clk 0:03:01]}  c6 {[%clk 0:02:59]} 9. h3 {[%clk 0:03:01]}  Re8 {[%clk 0:02:59]} 10. Be3 {[%clk 0:03:01]}  Qc7 {[%clk 0:02:53]} 11. Rc1 {[%clk 0:02:59]}  exd4 {[%clk 0:02:44]} 12. Nxd4 {[%clk 0:02:56]}  Nc5 {[%clk 0:02:44]} 13. Qc2 {[%clk 0:02:55]}  Bd7 {[%clk 0:02:36]} 14. Rfd1 {[%clk 0:02:54]}  Re7 {[%clk 0:02:35]} 15. b4 {[%clk 0:02:52]}  Ne6 {[%clk 0:02:35]} 16. Nde2 {[%clk 0:02:52]}  Rae8 {[%clk 0:02:33]} 17. c5 {[%clk 0:02:47]}  dxc5 {[%clk 0:02:32]} 18. bxc5 {[%clk 0:02:48]}  Nh5 {[%clk 0:02:19]} 19. f4 {[%clk 0:02:40]}  Nxg3 {[%clk 0:02:09]} 20. Nxg3 {[%clk 0:02:38]}  Nxf4 {[%clk 0:02:09]} 21. Bxf4 {[%clk 0:02:28]}  Qxf4 {[%clk 0:02:10]} 22. Qf2 {[%clk 0:02:25]}  Qg5 {[%clk 0:01:55]} 23. Nge2 {[%clk 0:02:21]}  Be5 {[%clk 0:01:48]} 24. Kh1 {[%clk 0:02:19]}  Be6 {[%clk 0:01:41]} 25. Rc2 {[%clk 0:02:14]}  Bb8 {[%clk 0:01:35]} 26. Nd4 {[%clk 0:01:53]}  Bc8 {[%clk 0:01:00]} 27. Nf3 {[%clk 0:01:38]}  Qf4 {[%clk 0:01:00]} 28. Rd4 {[%clk 0:01:35]}  h5 {[%clk 0:00:38]} 29. e5 {[%clk 0:01:34]}  Qf5 {[%clk 0:00:38]} 30. Ne4 {[%clk 0:01:24]}  Rxe5 {[%clk 0:00:22]} 31. Nxe5 {[%clk 0:01:22]}  Qxe5 {[%clk 0:00:23]} 32. Nf6+ {[%clk 0:01:11]}  Kh8 {[%clk 0:00:23]} 33. Be4 {[%clk 0:01:00]}  Rf8 {[%clk 0:00:17]} 34. Rcd2 {[%clk 0:00:59]}  Bc7 {[%clk 0:00:13]} 35. Re2 {[%clk 0:00:53]}  Kg7 {[%clk 0:00:12]} 36. Nd7 {[%clk 0:00:47]}  Bxd7 {[%clk 0:00:05]} 37. Rxd7 {[%clk 0:00:48]}  Bb8 {[%clk 0:00:05]} 38. Bxg6 {[%clk 0:00:46]}  Kxg6 {[%clk 0:00:05]} 39. Rxe5 {[%clk 0:00:44]} 1-0


[Site "https://www.chess.com"]

[Event "Titled Tuesday Blitz June 15 2021"]
[White "Willow, Jonah B"]
[Black "Stribuk, Artiom"]
[WhiteFideId "438804"]
[BlackFideId "13515659"]
[WhiteElo "2261"]
[BlackElo "2177"]
[Result "1-0"]
[Round "10"]
[TimeControl "180+1"]
[Date "2021.06.15"]
[WhiteClock "0:00:21"]
[BlackClock "0:00:02"]

1. e4 {[%clk 0:03:00]}  c5 {[%clk 0:02:56]} 2. Nf3 {[%clk 0:03:01]}  Nc6 {[%clk 0:02:54]} 3. d4 {[%clk 0:03:01]}  cxd4 {[%clk 0:02:55]} 4. Nxd4 {[%clk 0:03:02]}  Nf6 {[%clk 0:02:55]} 5. Nc3 {[%clk 0:03:02]}  e5 {[%clk 0:02:55]} 6. Ndb5 {[%clk 0:03:03]}  d6 {[%clk 0:02:55]} 7. Bg5 {[%clk 0:03:03]}  a6 {[%clk 0:02:56]} 8. Na3 {[%clk 0:03:04]}  b5 {[%clk 0:02:56]} 9. Nd5 {[%clk 0:03:05]}  Be7 {[%clk 0:02:56]} 10. Bxf6 {[%clk 0:03:06]}  Bxf6 {[%clk 0:02:57]} 11. c4 {[%clk 0:03:06]}  b4 {[%clk 0:02:57]} 12. Nc2 {[%clk 0:03:07]}  O-O {[%clk 0:02:58]} 13. g3 {[%clk 0:03:08]}  a5 {[%clk 0:02:58]} 14. Bg2 {[%clk 0:03:09]}  Bg5 {[%clk 0:02:32]} 15. O-O {[%clk 0:03:06]}  Be6 {[%clk 0:02:21]} 16. Qd3 {[%clk 0:03:05]}  Qb8 {[%clk 0:02:11]} 17. b3 {[%clk 0:02:57]}  Bd8 {[%clk 0:02:02]} 18. Rfd1 {[%clk 0:02:56]}  Bb6 {[%clk 0:01:58]} 19. Qe2 {[%clk 0:02:17]}  Bc5 {[%clk 0:01:58]} 20. Bf3 {[%clk 0:02:12]}  Qa7 {[%clk 0:01:51]} 21. Kg2 {[%clk 0:02:11]}  g6 {[%clk 0:01:30]} 22. h4 {[%clk 0:02:02]}  f5 {[%clk 0:01:23]} 23. exf5 {[%clk 0:01:50]}  Rxf5 {[%clk 0:01:10]} 24. Nde3 {[%clk 0:01:45]}  Rxf3 {[%clk 0:00:48]} 25. Qxf3 {[%clk 0:01:42]}  Nd4 {[%clk 0:00:47]} 26. Nxd4 {[%clk 0:01:39]}  Bxd4 {[%clk 0:00:47]} 27. Rac1 {[%clk 0:01:35]}  Rf8 {[%clk 0:00:47]} 28. Qe4 {[%clk 0:01:29]}  Qc5 {[%clk 0:00:45]} 29. Rd2 {[%clk 0:01:16]}  Kg7 {[%clk 0:00:36]} 30. Rf1 {[%clk 0:01:10]}  Bd7 {[%clk 0:00:34]} 31. Nd5 {[%clk 0:01:02]}  Bc6 {[%clk 0:00:34]} 32. f4 {[%clk 0:00:59]}  a4 {[%clk 0:00:22]} 33. fxe5 {[%clk 0:00:52]}  Rxf1 {[%clk 0:00:21]} 34. Kxf1 {[%clk 0:00:53]}  Bxe5 {[%clk 0:00:20]} 35. Qf3 {[%clk 0:00:51]}  axb3 {[%clk 0:00:19]} 36. axb3 {[%clk 0:00:52]}  Qa5 {[%clk 0:00:18]} 37. Rf2 {[%clk 0:00:51]}  Qa8 {[%clk 0:00:04]} 38. Qf7+ {[%clk 0:00:50]}  Kh6 {[%clk 0:00:05]} 39. g4 {[%clk 0:00:45]}  Bxd5 {[%clk 0:00:02]} 40. cxd5 {[%clk 0:00:36]}  Qa1+ {[%clk 0:00:02]} 41. Kg2 {[%clk 0:00:35]}  Qd4 {[%clk 0:00:03]} 42. Qf8+ {[%clk 0:00:31]}  Bg7 {[%clk 0:00:02]} 43. Qf4+ {[%clk 0:00:25]}  Qxf4 {[%clk 0:00:02]} 44. Rxf4 {[%clk 0:00:26]}  Bc3 {[%clk 0:00:03]} 45. Rf7 {[%clk 0:00:24]}  Be5 {[%clk 0:00:01]} 46. Kf3 {[%clk 0:00:22]}  g5 {[%clk 0:00:01]} 47. h5 {[%clk 0:00:22]}  Bd4 {[%clk 0:00:01]} 48. Ke4 {[%clk 0:00:23]}  Bc5 {[%clk 0:00:02]} 49. Kf5 {[%clk 0:00:23]}  Bd4 {[%clk 0:00:02]} 50. Ke6 {[%clk 0:00:23]}  Be5 {[%clk 0:00:03]} 51. Rd7 {[%clk 0:00:22]}  Bf6 {[%clk 0:00:02]} 52. Kxd6 {[%clk 0:00:21]}  Be5+ {[%clk 0:00:03]} 53. Ke6 {[%clk 0:00:21]}  Bf6 {[%clk 0:00:03]} 54. Rf7 {[%clk 0:00:21]}  Be5 {[%clk 0:00:03]} 55. Rf5 {[%clk 0:00:21]}  Bd6 {[%clk 0:00:02]} 56. Kxd6 {[%clk 0:00:21]} 1-0


[Site "https://www.chess.com"]

[Event "Titled Tuesday Blitz June 15 2021"]
[White "Zhigalko, Sergei"]
[Black "SpeedofLight0"]
[WhiteFideId "13502956"]
[WhiteElo "2662"]
[BlackElo "2828"]
[Result "1-0"]
[Round "10"]
[TimeControl "180+1"]
[Date "2021.06.15"]
[WhiteClock "0:00:07"]
[BlackClock "0:00:07"]

1. e4 {[%clk 0:03:00]}  c5 {[%clk 0:02:56]} 2. Nf3 {[%clk 0:03:00]}  Nc6 {[%clk 0:02:55]} 3. c3 {[%clk 0:03:01]}  d5 {[%clk 0:02:52]} 4. exd5 {[%clk 0:03:01]}  Qxd5 {[%clk 0:02:53]} 5. d4 {[%clk 0:03:02]}  Bf5 {[%clk 0:02:53]} 6. Be3 {[%clk 0:03:01]}  Nf6 {[%clk 0:02:53]} 7. Nbd2 {[%clk 0:02:58]}  e6 {[%clk 0:02:51]} 8. Bc4 {[%clk 0:02:56]}  Qd7 {[%clk 0:02:50]} 9. dxc5 {[%clk 0:02:51]}  Ng4 {[%clk 0:02:50]} 10. Qe2 {[%clk 0:02:46]}  Nxe3 {[%clk 0:02:28]} 11. Qxe3 {[%clk 0:02:46]}  a5 {[%clk 0:02:28]} 12. O-O {[%clk 0:02:25]}  Qe7 {[%clk 0:02:23]} 13. b4 {[%clk 0:02:15]}  axb4 {[%clk 0:02:21]} 14. cxb4 {[%clk 0:02:16]}  Nxb4 {[%clk 0:02:22]} 15. Bb5+ {[%clk 0:02:15]}  Nc6 {[%clk 0:02:22]} 16. Nd4 {[%clk 0:01:43]}  Rc8 {[%clk 0:01:51]} 17. Nc4 {[%clk 0:00:59]}  Qxc5 {[%clk 0:01:46]} 18. Rac1 {[%clk 0:00:39]}  Rd8 {[%clk 0:01:32]} 19. Rfd1 {[%clk 0:00:25]}  Rd5 {[%clk 0:00:51]} 20. Na5 {[%clk 0:00:18]}  Rxd4 {[%clk 0:00:16]} 21. Qxd4 {[%clk 0:00:14]}  Qxd4 {[%clk 0:00:16]} 22. Rxd4 {[%clk 0:00:14]}  Ba3 {[%clk 0:00:16]} 23. Nxc6 {[%clk 0:00:05]}  bxc6 {[%clk 0:00:15]} 24. Bxc6+ {[%clk 0:00:06]}  Ke7 {[%clk 0:00:16]} 25. Rd7+ {[%clk 0:00:05]}  Kf6 {[%clk 0:00:16]} 26. Rcd1 {[%clk 0:00:06]}  Rc8 {[%clk 0:00:15]} 27. Ba4 {[%clk 0:00:06]}  Bg4 {[%clk 0:00:12]} 28. Re1 {[%clk 0:00:04]}  Bb4 {[%clk 0:00:12]} 29. Rf1 {[%clk 0:00:04]}  Be2 {[%clk 0:00:11]} 30. Rb1 {[%clk 0:00:05]}  Ba3 {[%clk 0:00:07]} 31. h3 {[%clk 0:00:04]}  g5 {[%clk 0:00:07]} 32. Bb3 {[%clk 0:00:04]}  Bh5 {[%clk 0:00:05]} 33. Rd2 {[%clk 0:00:04]}  Bg6 {[%clk 0:00:05]} 34. Rf1 {[%clk 0:00:04]}  h5 {[%clk 0:00:05]} 35. Rfd1 {[%clk 0:00:03]}  g4 {[%clk 0:00:05]} 36. Rd8 {[%clk 0:00:03]}  Rc3 {[%clk 0:00:05]} 37. hxg4 {[%clk 0:00:03]}  hxg4 {[%clk 0:00:05]} 38. R8d4 {[%clk 0:00:04]}  g3 {[%clk 0:00:05]} 39. fxg3 {[%clk 0:00:03]}  Rxg3 {[%clk 0:00:06]} 40. Kf2 {[%clk 0:00:04]}  Rc3 {[%clk 0:00:06]} 41. Rf4+ {[%clk 0:00:04]}  Ke7 {[%clk 0:00:06]} 42. Rf3 {[%clk 0:00:05]}  Rc6 {[%clk 0:00:06]} 43. Rh3 {[%clk 0:00:04]}  Rc7 {[%clk 0:00:05]} 44. Ke2 {[%clk 0:00:04]}  Rb7 {[%clk 0:00:05]} 45. Rd4 {[%clk 0:00:05]}  Rb5 {[%clk 0:00:05]} 46. Rc4 {[%clk 0:00:04]}  Re5+ {[%clk 0:00:05]} 47. Kd2 {[%clk 0:00:04]}  Bd6 {[%clk 0:00:03]} 48. Ra4 {[%clk 0:00:04]}  Rd5+ {[%clk 0:00:03]} 49. Bxd5 {[%clk 0:00:04]}  exd5 {[%clk 0:00:03]} 50. Ra7+ {[%clk 0:00:04]}  Ke6 {[%clk 0:00:03]} 51. Ra6 {[%clk 0:00:05]}  Ke5 {[%clk 0:00:03]} 52. Re3+ {[%clk 0:00:06]}  Be4 {[%clk 0:00:04]} 53. Rxd6 {[%clk 0:00:02]}  Kxd6 {[%clk 0:00:05]} 54. g3 {[%clk 0:00:03]}  f5 {[%clk 0:00:05]} 55. Ra3 {[%clk 0:00:03]}  d4 {[%clk 0:00:05]} 56. Ra5 {[%clk 0:00:03]}  Kc6 {[%clk 0:00:05]} 57. a3 {[%clk 0:00:03]}  Kb6 {[%clk 0:00:06]} 58. Re5 {[%clk 0:00:04]}  Kc6 {[%clk 0:00:06]} 59. Ra5 {[%clk 0:00:03]}  Kb6 {[%clk 0:00:07]} 60. Re5 {[%clk 0:00:03]}  Kc6 {[%clk 0:00:07]} 61. a4 {[%clk 0:00:04]}  Kd6 {[%clk 0:00:07]} 62. Ra5 {[%clk 0:00:04]}  Kc6 {[%clk 0:00:04]} 63. Rb5 {[%clk 0:00:05]}  Bg2 {[%clk 0:00:02]} 64. Rxf5 {[%clk 0:00:05]}  Bd5 {[%clk 0:00:02]} 65. g4 {[%clk 0:00:04]}  Bb3 {[%clk 0:00:01]} 66. a5 {[%clk 0:00:04]}  Be6 {[%clk 0:00:01]} 67. Rf6 {[%clk 0:00:04]}  Kd5 {[%clk 0:00:02]} 68. Rxe6 {[%clk 0:00:05]}  Kxe6 {[%clk 0:00:03]} 69. a6 {[%clk 0:00:06]}  Ke5 {[%clk 0:00:03]} 70. g5 {[%clk 0:00:06]}  Kf4 {[%clk 0:00:04]} 71. a7 {[%clk 0:00:07]}  Kxg5 {[%clk 0:00:04]} 72. a8=Q {[%clk 0:00:07]}  Kf4 {[%clk 0:00:05]} 73. Qd5 {[%clk 0:00:07]}  Kg3 {[%clk 0:00:06]} 74. Qxd4 {[%clk 0:00:07]}  Kh2 {[%clk 0:00:07]} 75. Qg4 {[%clk 0:00:07]} 1-0


[Site "https://www.chess.com"]

[Event "Titled Tuesday Blitz June 15 2021"]
[White "Zufic, Miroslav"]
[Black "Schmidt, Harald"]
[WhiteFideId "14506157"]
[BlackFideId "4648358"]
[WhiteElo "2362"]
[BlackElo "2366"]
[Result "1/2-1/2"]
[Round "10"]
[TimeControl "180+1"]
[Date "2021.06.15"]
[WhiteClock "0:00:06"]
[BlackClock "0:00:09"]

1. b3 {[%clk 0:02:54]}  a5 {[%clk 0:02:58]} 2. Bb2 {[%clk 0:02:55]}  a4 {[%clk 0:02:58]} 3. Nf3 {[%clk 0:02:54]}  d6 {[%clk 0:02:55]} 4. c4 {[%clk 0:02:53]}  Bf5 {[%clk 0:02:51]} 5. bxa4 {[%clk 0:02:50]}  Nd7 {[%clk 0:02:50]} 6. Nc3 {[%clk 0:02:50]}  e5 {[%clk 0:02:46]} 7. g3 {[%clk 0:02:47]}  Ngf6 {[%clk 0:02:39]} 8. Bg2 {[%clk 0:02:46]}  Be7 {[%clk 0:02:36]} 9. O-O {[%clk 0:02:44]}  c6 {[%clk 0:02:32]} 10. d4 {[%clk 0:02:32]}  exd4 {[%clk 0:02:31]} 11. Nxd4 {[%clk 0:02:33]}  Bg6 {[%clk 0:02:27]} 12. h3 {[%clk 0:02:24]}  Nc5 {[%clk 0:02:03]} 13. g4 {[%clk 0:02:08]}  h5 {[%clk 0:01:59]} 14. g5 {[%clk 0:02:07]}  Nfe4 {[%clk 0:01:59]} 15. Nxe4 {[%clk 0:02:06]}  Bxe4 {[%clk 0:01:58]} 16. h4 {[%clk 0:01:51]}  Qd7 {[%clk 0:01:37]} 17. f3 {[%clk 0:01:33]}  Bg6 {[%clk 0:01:36]} 18. Rc1 {[%clk 0:01:17]}  f6 {[%clk 0:01:27]} 19. f4 {[%clk 0:01:12]}  Be4 {[%clk 0:01:25]} 20. e3 {[%clk 0:01:06]}  Bxg2 {[%clk 0:01:19]} 21. Kxg2 {[%clk 0:01:07]}  Rxa4 {[%clk 0:01:17]} 22. a3 {[%clk 0:01:02]}  d5 {[%clk 0:00:49]} 23. cxd5 {[%clk 0:00:51]}  Qxd5+ {[%clk 0:00:45]} 24. Kh2 {[%clk 0:00:52]}  Rc4 {[%clk 0:00:38]} 25. Rxc4 {[%clk 0:00:48]}  Qxc4 {[%clk 0:00:38]} 26. Nf5 {[%clk 0:00:48]}  Qd3 {[%clk 0:00:16]} 27. Nxg7+ {[%clk 0:00:32]}  Kf7 {[%clk 0:00:16]} 28. gxf6 {[%clk 0:00:30]}  Bxf6 {[%clk 0:00:15]} 29. Bxf6 {[%clk 0:00:28]}  Kxf6 {[%clk 0:00:11]} 30. Nxh5+ {[%clk 0:00:20]}  Rxh5 {[%clk 0:00:10]} 31. Qxh5 {[%clk 0:00:20]}  Qxf1 {[%clk 0:00:10]} 32. Qg5+ {[%clk 0:00:16]}  Kf7 {[%clk 0:00:10]} 33. Qf5+ {[%clk 0:00:16]}  Kg7 {[%clk 0:00:10]} 34. Qe5+ {[%clk 0:00:13]}  Kf7 {[%clk 0:00:09]} 35. Qxc5 {[%clk 0:00:04]}  Qf2+ {[%clk 0:00:09]} 36. Kh3 {[%clk 0:00:05]}  Qf3+ {[%clk 0:00:08]} 37. Kh2 {[%clk 0:00:05]}  Qf2+ {[%clk 0:00:09]} 38. Kh3 {[%clk 0:00:06]}  Qf3+ {[%clk 0:00:09]} 39. Kh2 {[%clk 0:00:06]}  Qf2+ {[%clk 0:00:09]} 1/2-1/2


[Site "https://www.chess.com"]

[Event "Titled Tuesday Blitz June 15 2021"]
[White "deribas12345"]
[Black "Shahade, Gregory"]
[BlackFideId "2009064"]
[WhiteElo "2549"]
[BlackElo "2724"]
[Result "0-1"]
[Round "10"]
[TimeControl "180+1"]
[Date "2021.06.15"]
[WhiteClock "0:00:18"]
[BlackClock "0:00:08"]

1. d4 {[%clk 0:02:37]}  Nf6 {[%clk 0:02:56]} 2. c4 {[%clk 0:02:36]}  g6 {[%clk 0:02:57]} 3. Nc3 {[%clk 0:02:35]}  d5 {[%clk 0:02:57]} 4. Bg5 {[%clk 0:02:34]}  Ne4 {[%clk 0:02:54]} 5. Bh4 {[%clk 0:02:19]}  Nxc3 {[%clk 0:02:50]} 6. bxc3 {[%clk 0:02:14]}  dxc4 {[%clk 0:02:50]} 7. Nf3 {[%clk 0:02:06]}  Bg7 {[%clk 0:02:46]} 8. e3 {[%clk 0:02:02]}  Be6 {[%clk 0:02:46]} 9. Be2 {[%clk 0:01:44]}  Nd7 {[%clk 0:02:46]} 10. Ng5 {[%clk 0:01:43]}  Bd5 {[%clk 0:02:44]} 11. e4 {[%clk 0:01:42]}  h6 {[%clk 0:02:44]} 12. exd5 {[%clk 0:01:39]}  hxg5 {[%clk 0:02:44]} 13. Bxg5 {[%clk 0:01:39]}  Nb6 {[%clk 0:02:37]} 14. O-O {[%clk 0:01:15]}  Qxd5 {[%clk 0:02:32]} 15. h4 {[%clk 0:01:15]}  c6 {[%clk 0:02:18]} 16. Bf3 {[%clk 0:01:14]}  Qd7 {[%clk 0:02:15]} 17. Re1 {[%clk 0:01:14]}  e6 {[%clk 0:02:15]} 18. Qe2 {[%clk 0:01:05]}  O-O {[%clk 0:01:36]} 19. Bf4 {[%clk 0:00:54]}  Nd5 {[%clk 0:01:33]} 20. Be5 {[%clk 0:00:53]}  Nxc3 {[%clk 0:01:27]} 21. Qxc4 {[%clk 0:00:52]}  Nd5 {[%clk 0:01:21]} 22. h5 {[%clk 0:00:53]}  g5 {[%clk 0:01:11]} 23. Bxg7 {[%clk 0:00:47]}  Kxg7 {[%clk 0:01:11]} 24. Rab1 {[%clk 0:00:45]}  b5 {[%clk 0:01:10]} 25. Qc1 {[%clk 0:00:44]}  Kh6 {[%clk 0:01:07]} 26. Bxd5 {[%clk 0:00:42]}  cxd5 {[%clk 0:01:03]} 27. f4 {[%clk 0:00:38]}  Rg8 {[%clk 0:00:46]} 28. Rb3 {[%clk 0:00:38]}  Rac8 {[%clk 0:00:30]} 29. Qd2 {[%clk 0:00:37]}  f6 {[%clk 0:00:26]} 30. Rf1 {[%clk 0:00:36]}  g4 {[%clk 0:00:21]} 31. f5+ {[%clk 0:00:36]}  Rg5 {[%clk 0:00:22]} 32. fxe6 {[%clk 0:00:32]}  Qxe6 {[%clk 0:00:23]} 33. Rxb5 {[%clk 0:00:32]}  Rc6 {[%clk 0:00:20]} 34. Rb8 {[%clk 0:00:31]}  g3 {[%clk 0:00:12]} 35. Qf4 {[%clk 0:00:29]}  Qe4 {[%clk 0:00:09]} 36. Rh8+ {[%clk 0:00:18]}  Kg7 {[%clk 0:00:08]} 37. Qb8 {[%clk 0:00:19]}  Qxd4+ {[%clk 0:00:07]} 38. Kh1 {[%clk 0:00:18]}  Qh4+ {[%clk 0:00:08]} 39. Kg1 {[%clk 0:00:18]}  Qh2# {[%clk 0:00:08]} 0-1


[Site "https://www.chess.com"]

[Event "Titled Tuesday Blitz June 15 2021"]
[White "tylityli"]
[Black "Levine, Joseph"]
[BlackFideId "30940346"]
[WhiteElo "2324"]
[BlackElo "1785"]
[Result "0-1"]
[Round "10"]
[TimeControl "180+1"]
[Date "2021.06.15"]
[WhiteClock "0:00:02"]
[BlackClock "0:00:05"]

1. d4 {[%clk 0:02:40]}  d5 {[%clk 0:02:59]} 2. c4 {[%clk 0:02:38]}  e6 {[%clk 0:02:59]} 3. Nc3 {[%clk 0:02:38]}  Nf6 {[%clk 0:02:59]} 4. cxd5 {[%clk 0:02:36]}  exd5 {[%clk 0:02:59]} 5. Bg5 {[%clk 0:02:37]}  c6 {[%clk 0:02:59]} 6. e3 {[%clk 0:02:37]}  Bd6 {[%clk 0:02:58]} 7. Bd3 {[%clk 0:02:37]}  O-O {[%clk 0:02:57]} 8. Qc2 {[%clk 0:02:33]}  h6 {[%clk 0:02:57]} 9. Bh4 {[%clk 0:02:32]}  Re8 {[%clk 0:02:54]} 10. Nge2 {[%clk 0:02:30]}  Nbd7 {[%clk 0:02:54]} 11. Bg3 {[%clk 0:02:28]}  Nf8 {[%clk 0:02:51]} 12. O-O {[%clk 0:02:26]}  Bg4 {[%clk 0:02:46]} 13. f3 {[%clk 0:02:20]}  Bh5 {[%clk 0:02:43]} 14. Bf2 {[%clk 0:02:11]}  Bg6 {[%clk 0:02:40]} 15. Kh1 {[%clk 0:02:02]}  Bxd3 {[%clk 0:02:33]} 16. Qxd3 {[%clk 0:02:02]}  Qe7 {[%clk 0:02:33]} 17. Ng3 {[%clk 0:01:58]}  Bxg3 {[%clk 0:02:29]} 18. hxg3 {[%clk 0:01:58]}  Ng6 {[%clk 0:02:25]} 19. g4 {[%clk 0:01:48]}  Qe6 {[%clk 0:01:58]} 20. b4 {[%clk 0:01:41]}  h5 {[%clk 0:01:32]} 21. g5 {[%clk 0:01:29]}  Nh7 {[%clk 0:01:31]} 22. f4 {[%clk 0:01:29]}  f5 {[%clk 0:01:30]} 23. b5 {[%clk 0:01:15]}  Ne7 {[%clk 0:01:27]} 24. a4 {[%clk 0:01:00]}  Nf8 {[%clk 0:01:23]} 25. a5 {[%clk 0:00:58]}  cxb5 {[%clk 0:01:04]} 26. Qxb5 {[%clk 0:00:55]}  Rac8 {[%clk 0:00:57]} 27. Rac1 {[%clk 0:00:50]}  Qc6 {[%clk 0:00:42]} 28. Qb2 {[%clk 0:00:36]}  Qd7 {[%clk 0:00:30]} 29. Qb3 {[%clk 0:00:31]}  Red8 {[%clk 0:00:26]} 30. Na4 {[%clk 0:00:29]}  Ne6 {[%clk 0:00:18]} 31. Rb1 {[%clk 0:00:21]}  Rc7 {[%clk 0:00:16]} 32. Rfc1 {[%clk 0:00:16]}  Rdc8 {[%clk 0:00:16]} 33. Rxc7 {[%clk 0:00:15]}  Rxc7 {[%clk 0:00:17]} 34. Kh2 {[%clk 0:00:13]}  Kh7 {[%clk 0:00:15]} 35. Be1 {[%clk 0:00:12]}  Nc6 {[%clk 0:00:14]} 36. Nc5 {[%clk 0:00:10]}  Nxc5 {[%clk 0:00:14]} 37. dxc5 {[%clk 0:00:11]}  d4 {[%clk 0:00:12]} 38. exd4 {[%clk 0:00:09]}  Qxd4 {[%clk 0:00:13]} 39. Bg3 {[%clk 0:00:07]}  Qxc5 {[%clk 0:00:10]} 40. Qb5 {[%clk 0:00:06]}  Qf8 {[%clk 0:00:07]} 41. Rc1 {[%clk 0:00:05]}  Qf7 {[%clk 0:00:07]} 42. Rc5 {[%clk 0:00:04]}  Nd4 {[%clk 0:00:07]} 43. Rxc7 {[%clk 0:00:03]}  Qxc7 {[%clk 0:00:07]} 44. Qd5 {[%clk 0:00:02]}  Qc3 {[%clk 0:00:05]} 0-1


[Site "https://www.chess.com"]

[Event "Titled Tuesday Blitz June 15 2021"]
[White "Eljanov, Pavel"]
[Black "Sjugirov, Sanan"]
[WhiteFideId "14102951"]
[BlackFideId "4189302"]
[WhiteElo "2602"]
[BlackElo "2472"]
[Result "0-1"]
[Round "11"]
[TimeControl "180+1"]
[Date "2021.06.15"]
[WhiteClock "0:00:01"]
[BlackClock "0:00:52"]

1. Nf3 {[%clk 0:03:00]}  c5 {[%clk 0:02:59]} 2. g3 {[%clk 0:03:00]}  Nc6 {[%clk 0:02:59]} 3. c4 {[%clk 0:03:00]}  g6 {[%clk 0:02:58]} 4. Bg2 {[%clk 0:03:00]}  Bg7 {[%clk 0:02:59]} 5. Nc3 {[%clk 0:03:01]}  e5 {[%clk 0:02:59]} 6. d3 {[%clk 0:03:01]}  Nge7 {[%clk 0:02:59]} 7. a3 {[%clk 0:02:56]}  O-O {[%clk 0:02:57]} 8. Rb1 {[%clk 0:02:53]}  a5 {[%clk 0:02:45]} 9. Nd2 {[%clk 0:02:53]}  d6 {[%clk 0:02:44]} 10. Nf1 {[%clk 0:02:53]}  Be6 {[%clk 0:02:41]} 11. Ne3 {[%clk 0:02:52]}  Rb8 {[%clk 0:02:38]} 12. Ned5 {[%clk 0:02:52]}  Qd7 {[%clk 0:02:26]} 13. O-O {[%clk 0:02:52]}  Bh3 {[%clk 0:02:23]} 14. e4 {[%clk 0:02:42]}  Bxg2 {[%clk 0:02:23]} 15. Kxg2 {[%clk 0:02:42]}  f5 {[%clk 0:02:16]} 16. f3 {[%clk 0:02:33]}  Nxd5 {[%clk 0:02:14]} 17. cxd5 {[%clk 0:02:24]}  Nd4 {[%clk 0:02:13]} 18. Be3 {[%clk 0:02:19]}  b5 {[%clk 0:02:12]} 19. Qd2 {[%clk 0:01:17]}  a4 {[%clk 0:02:00]} 20. Bxd4 {[%clk 0:01:14]}  exd4 {[%clk 0:01:59]} 21. Ne2 {[%clk 0:01:13]}  b4 {[%clk 0:01:54]} 22. Qc2 {[%clk 0:01:04]}  Bh6 {[%clk 0:01:49]} 23. f4 {[%clk 0:01:03]}  fxe4 {[%clk 0:01:31]} 24. dxe4 {[%clk 0:01:01]}  Qb5 {[%clk 0:01:28]} 25. Rf3 {[%clk 0:00:40]}  Bg7 {[%clk 0:01:26]} 26. f5 {[%clk 0:00:30]}  c4 {[%clk 0:01:23]} 27. Nf4 {[%clk 0:00:28]}  d3 {[%clk 0:01:20]} 28. Qf2 {[%clk 0:00:25]}  bxa3 {[%clk 0:01:19]} 29. Ne6 {[%clk 0:00:24]}  Qxb2 {[%clk 0:01:12]} 30. Rxb2 {[%clk 0:00:20]}  Rxb2 {[%clk 0:01:11]} 31. Nxf8 {[%clk 0:00:11]}  Bd4 {[%clk 0:01:05]} 32. Qxb2 {[%clk 0:00:02]}  axb2 {[%clk 0:01:05]} 33. Ne6 {[%clk 0:00:01]}  b1=Q {[%clk 0:01:03]} 34. fxg6 {[%clk 0:00:01]}  hxg6 {[%clk 0:00:52]} 0-1


[Site "https://www.chess.com"]

[Event "Titled Tuesday Blitz June 15 2021"]
[White "Herman, Matthew"]
[Black "Donchenko, Alexander"]
[WhiteFideId "2028964"]
[BlackFideId "24603295"]
[WhiteElo "2368"]
[BlackElo "2553"]
[Result "0-1"]
[Round "11"]
[TimeControl "180+1"]
[Date "2021.06.15"]
[WhiteClock "0:00:35"]
[BlackClock "0:02:10"]

1. d4 {[%clk 0:03:00]}  d5 {[%clk 0:02:58]} 2. c4 {[%clk 0:03:01]}  e6 {[%clk 0:02:59]} 3. Nc3 {[%clk 0:03:01]}  Nf6 {[%clk 0:02:59]} 4. Bg5 {[%clk 0:03:02]}  Be7 {[%clk 0:02:58]} 5. Nf3 {[%clk 0:03:02]}  h6 {[%clk 0:02:57]} 6. Bh4 {[%clk 0:02:59]}  O-O {[%clk 0:02:57]} 7. e3 {[%clk 0:02:57]}  Ne4 {[%clk 0:02:58]} 8. Bg3 {[%clk 0:02:56]}  c5 {[%clk 0:02:54]} 9. Qc2 {[%clk 0:02:53]}  cxd4 {[%clk 0:02:50]} 10. exd4 {[%clk 0:02:47]}  Nxc3 {[%clk 0:02:44]} 11. bxc3 {[%clk 0:02:45]}  Nc6 {[%clk 0:02:44]} 12. c5 {[%clk 0:02:16]}  b6 {[%clk 0:02:43]} 13. Bb5 {[%clk 0:02:13]}  Bd7 {[%clk 0:02:43]} 14. Qa4 {[%clk 0:01:35]}  Qc8 {[%clk 0:02:22]} 15. cxb6 {[%clk 0:00:45]}  axb6 {[%clk 0:02:21]} 16. Qd1 {[%clk 0:00:35]}  Ne5 {[%clk 0:02:10]} 0-1


[Site "https://www.chess.com"]